[Event "Titled Tuesday Blitz January 17 Late 2023"]
[White "Winterberg, Lukas"]
[Black "Chernomordik, Pavel"]
[WhiteFideId "24622702"]
[BlackFideId "2804530"]
[WhiteElo "2402"]
[BlackElo "2150"]
[Result "0-1"]
[Round "08"]
[TimeControl "180+2"]
[Date "2023.01.17"]
[WhiteClock "0:00:01"]
[BlackClock "0:01:08"]

1. e4 {[%clk 0:02:59]}  g6 {[%clk 0:03:00]} 2. d4 {[%clk 0:02:59]}  Bg7 {[%clk 0:03:00]} 3. Nc3 {[%clk 0:03:00]}  d6 {[%clk 0:03:00]} 4. Bg5 {[%clk 0:02:59]}  h6 {[%clk 0:02:59]} 5. Bh4 {[%clk 0:02:59]}  c5 {[%clk 0:02:59]} 6. dxc5 {[%clk 0:02:58]}  Qa5 {[%clk 0:02:58]} 7. Qd2 {[%clk 0:02:56]}  Qxc5 {[%clk 0:02:58]} 8. Bd3 {[%clk 0:02:55]}  Nc6 {[%clk 0:02:55]} 9. Nge2 {[%clk 0:02:54]}  Nf6 {[%clk 0:02:51]} 10. Bxf6 {[%clk 0:02:53]}  Bxf6 {[%clk 0:02:50]} 11. Nd5 {[%clk 0:02:53]}  Ne5 {[%clk 0:02:26]} 12. Bb5+ {[%clk 0:02:45]}  Bd7 {[%clk 0:02:16]} 13. b4 {[%clk 0:02:34]}  Qxb5 {[%clk 0:02:08]} 14. Nc7+ {[%clk 0:02:33]}  Kd8 {[%clk 0:02:08]} 15. Nxb5 {[%clk 0:02:34]}  Bxb5 {[%clk 0:02:07]} 16. Nd4 {[%clk 0:02:28]}  Bc4 {[%clk 0:02:03]} 17. f4 {[%clk 0:02:26]}  Nc6 {[%clk 0:02:00]} 18. e5 {[%clk 0:02:23]}  Bg7 {[%clk 0:01:55]} 19. Nxc6+ {[%clk 0:02:19]}  bxc6 {[%clk 0:01:53]} 20. Rd1 {[%clk 0:02:12]}  d5 {[%clk 0:01:52]} 21. Kf2 {[%clk 0:02:07]}  g5 {[%clk 0:01:49]} 22. fxg5 {[%clk 0:02:01]}  Bxe5 {[%clk 0:01:45]} 23. Rhe1 {[%clk 0:02:01]}  Bd6 {[%clk 0:01:41]} 24. Qc3 {[%clk 0:01:53]}  Kc7 {[%clk 0:01:40]} 25. Qg7 {[%clk 0:01:42]}  Rag8 {[%clk 0:01:37]} 26. Qd4 {[%clk 0:01:39]}  Kb7 {[%clk 0:01:36]} 27. b5 {[%clk 0:01:28]}  cxb5 {[%clk 0:01:31]} 28. Rb1 {[%clk 0:01:17]}  hxg5 {[%clk 0:01:25]} 29. a4 {[%clk 0:01:01]}  Rh4 {[%clk 0:01:22]} 30. Rxb5+ {[%clk 0:00:32]}  Bxb5 {[%clk 0:01:22]} 31. Qxd5+ {[%clk 0:00:28]}  Bc6 {[%clk 0:01:21]} 32. Rb1+ {[%clk 0:00:28]}  Kc7 {[%clk 0:01:21]} 33. Qa5+ {[%clk 0:00:29]}  Kd7 {[%clk 0:01:18]} 34. Qxa7+ {[%clk 0:00:28]}  Ke6 {[%clk 0:01:18]} 35. Qe3+ {[%clk 0:00:22]}  Re4 {[%clk 0:01:16]} 36. Qd3 {[%clk 0:00:17]}  Bc5+ {[%clk 0:01:12]} 37. Kf1 {[%clk 0:00:14]}  Rg6 {[%clk 0:01:11]} 38. Qb3+ {[%clk 0:00:09]}  Bd5 {[%clk 0:01:10]} 39. Qh3+ {[%clk 0:00:03]}  g4 {[%clk 0:01:09]} 40. Qg3 {[%clk 0:00:01]}  Rf6+ {[%clk 0:01:08]} 0-1


[Site "https://www.chess.com"]

[Event "Titled Tuesday Blitz January 17 Late 2023"]
[White "Petukhov, Dmitry"]
[Black "Bambino Filho, Antonio Carlos"]
[WhiteFideId "4142748"]
[BlackFideId "2113163"]
[WhiteElo "2350"]
[BlackElo "2144"]
[Result "1-0"]
[Round "08"]
[TimeControl "180+2"]
[Date "2023.01.17"]
[WhiteClock "0:01:58"]
[BlackClock "0:01:45"]

1. e4 {[%clk 0:03:00]}  c5 {[%clk 0:02:56]} 2. c3 {[%clk 0:03:00]}  e6 {[%clk 0:02:54]} 3. d4 {[%clk 0:03:00]}  d5 {[%clk 0:02:55]} 4. e5 {[%clk 0:03:00]}  Qb6 {[%clk 0:02:55]} 5. Nf3 {[%clk 0:03:00]}  Bd7 {[%clk 0:02:55]} 6. a3 {[%clk 0:03:00]}  Bb5 {[%clk 0:02:55]} 7. c4 {[%clk 0:02:59]}  Bxc4 {[%clk 0:02:53]} 8. Bxc4 {[%clk 0:02:59]}  dxc4 {[%clk 0:02:54]} 9. d5 {[%clk 0:02:59]}  exd5 {[%clk 0:02:51]} 10. Qxd5 {[%clk 0:03:00]}  Ne7 {[%clk 0:02:42]} 11. Qxc4 {[%clk 0:03:00]}  Nbc6 {[%clk 0:02:42]} 12. O-O {[%clk 0:03:00]}  Ng6 {[%clk 0:02:42]} 13. Nc3 {[%clk 0:03:00]}  Be7 {[%clk 0:02:22]} 14. Nd5 {[%clk 0:02:58]}  Qd8 {[%clk 0:02:22]} 15. Rd1 {[%clk 0:02:58]}  O-O {[%clk 0:02:20]} 16. Nf6+ {[%clk 0:02:48]}  Bxf6 {[%clk 0:02:20]} 17. Rxd8 {[%clk 0:02:48]}  Bxd8 {[%clk 0:02:21]} 18. e6 {[%clk 0:02:45]}  Bf6 {[%clk 0:02:15]} 19. exf7+ {[%clk 0:02:37]}  Kh8 {[%clk 0:02:15]} 20. Bg5 {[%clk 0:02:33]}  Nge5 {[%clk 0:02:03]} 21. Nxe5 {[%clk 0:02:17]}  Nxe5 {[%clk 0:02:01]} 22. Qxc5 {[%clk 0:02:07]}  Nd3 {[%clk 0:01:59]} 23. Qe3 {[%clk 0:02:00]}  Bxg5 {[%clk 0:01:44]} 24. Qxg5 {[%clk 0:02:01]}  Rxf7 {[%clk 0:01:45]} 25. Qd5 {[%clk 0:01:58]} 1-0


[Site "https://www.chess.com"]

[Event "Titled Tuesday Blitz January 17 Late 2023"]
[White "Degtiarev, Evgeny"]
[Black "Graif, William"]
[WhiteFideId "4149610"]
[BlackFideId "2609835"]
[WhiteElo "2385"]
[BlackElo "2304"]
[Result "0-1"]
[Round "08"]
[TimeControl "180+2"]
[Date "2023.01.17"]
[WhiteClock "0:00:12"]
[BlackClock "0:00:05"]

1. d4 {[%clk 0:03:00]}  Nf6 {[%clk 0:02:59]} 2. c4 {[%clk 0:03:00]}  e6 {[%clk 0:02:57]} 3. g3 {[%clk 0:02:59]}  c5 {[%clk 0:02:51]} 4. d5 {[%clk 0:02:59]}  exd5 {[%clk 0:02:50]} 5. cxd5 {[%clk 0:03:00]}  d6 {[%clk 0:02:51]} 6. Nc3 {[%clk 0:03:01]}  g6 {[%clk 0:02:51]} 7. Bg2 {[%clk 0:03:01]}  Bg7 {[%clk 0:02:51]} 8. Nf3 {[%clk 0:03:02]}  O-O {[%clk 0:02:51]} 9. O-O {[%clk 0:03:03]}  Nbd7 {[%clk 0:02:50]} 10. Bf4 {[%clk 0:03:01]}  Qe7 {[%clk 0:02:34]} 11. Re1 {[%clk 0:02:54]}  Nh5 {[%clk 0:01:57]} 12. Bg5 {[%clk 0:02:52]}  f6 {[%clk 0:01:39]} 13. Bd2 {[%clk 0:02:51]}  f5 {[%clk 0:01:29]} 14. Bg5 {[%clk 0:02:45]}  Qf7 {[%clk 0:01:11]} 15. Nb5 {[%clk 0:02:36]}  Ndf6 {[%clk 0:01:01]} 16. Nxd6 {[%clk 0:02:34]}  Qxd5 {[%clk 0:01:01]} 17. Qxd5+ {[%clk 0:02:00]}  Nxd5 {[%clk 0:01:01]} 18. Be7 {[%clk 0:01:59]}  Bxb2 {[%clk 0:00:54]} 19. Bxf8 {[%clk 0:01:58]}  Bxa1 {[%clk 0:00:50]} 20. Rxa1 {[%clk 0:01:57]}  Kxf8 {[%clk 0:00:49]} 21. Ng5 {[%clk 0:01:55]}  Nhf6 {[%clk 0:00:43]} 22. Rc1 {[%clk 0:01:46]}  Ke7 {[%clk 0:00:38]} 23. Nb5 {[%clk 0:01:38]}  b6 {[%clk 0:00:33]} 24. e4 {[%clk 0:01:31]}  fxe4 {[%clk 0:00:31]} 25. Nxe4 {[%clk 0:01:30]}  Nxe4 {[%clk 0:00:26]} 26. Bxe4 {[%clk 0:01:28]}  Bb7 {[%clk 0:00:26]} 27. Re1 {[%clk 0:01:24]}  Kd7 {[%clk 0:00:20]} 28. Rd1 {[%clk 0:01:23]}  Re8 {[%clk 0:00:09]} 29. Bxd5 {[%clk 0:01:16]}  Bxd5 {[%clk 0:00:09]} 30. Rxd5+ {[%clk 0:01:16]}  Kc6 {[%clk 0:00:10]} 31. Nc3 {[%clk 0:01:16]}  b5 {[%clk 0:00:10]} 32. Rd2 {[%clk 0:01:12]}  b4 {[%clk 0:00:10]} 33. Nd1 {[%clk 0:01:09]}  c4 {[%clk 0:00:10]} 34. Ne3 {[%clk 0:01:07]}  c3 {[%clk 0:00:10]} 35. Rd4 {[%clk 0:01:07]}  a5 {[%clk 0:00:08]} 36. Kf1 {[%clk 0:01:05]}  Kb5 {[%clk 0:00:06]} 37. Ke2 {[%clk 0:01:03]}  Ka4 {[%clk 0:00:06]} 38. Kd1 {[%clk 0:00:48]}  Ka3 {[%clk 0:00:06]} 39. Rd5 {[%clk 0:00:46]}  a4 {[%clk 0:00:06]} 40. Rd4 {[%clk 0:00:41]}  b3 {[%clk 0:00:05]} 41. axb3 {[%clk 0:00:19]}  axb3 {[%clk 0:00:06]} 42. Rd3 {[%clk 0:00:18]}  Rxe3 {[%clk 0:00:03]} 43. fxe3 {[%clk 0:00:17]}  Kb2 {[%clk 0:00:03]} 44. Rxc3 {[%clk 0:00:14]}  Kxc3 {[%clk 0:00:03]} 45. Kc1 {[%clk 0:00:14]}  Kd3 {[%clk 0:00:01]} 46. Kb2 {[%clk 0:00:14]}  Kxe3 {[%clk 0:00:02]} 47. Kxb3 {[%clk 0:00:15]}  Kf3 {[%clk 0:00:03]} 48. Kc3 {[%clk 0:00:13]}  Kg2 {[%clk 0:00:03]} 49. Kd4 {[%clk 0:00:11]}  Kxh2 {[%clk 0:00:04]} 50. g4 {[%clk 0:00:12]}  Kg3 {[%clk 0:00:04]} 51. Ke3 {[%clk 0:00:12]}  Kxg4 {[%clk 0:00:05]} 52. Kf2 {[%clk 0:00:12]}  Kf5 {[%clk 0:00:05]} 0-1


[Site "https://www.chess.com"]

[Event "Titled Tuesday Blitz January 17 Late 2023"]
[White "Kochetov, Andrey"]
[Black "Kaganskiy, Gleb"]
[WhiteFideId "24130532"]
[BlackFideId "4132025"]
[WhiteElo "2165"]
[BlackElo "2205"]
[Result "0-1"]
[Round "08"]
[TimeControl "180+2"]
[Date "2023.01.17"]
[WhiteClock "0:00:04"]
[BlackClock "0:00:09"]

1. e4 {[%clk 0:02:57]}  e6 {[%clk 0:02:58]} 2. d4 {[%clk 0:02:56]}  d5 {[%clk 0:02:58]} 3. Nd2 {[%clk 0:02:56]}  c5 {[%clk 0:02:57]} 4. exd5 {[%clk 0:02:56]}  Qxd5 {[%clk 0:02:58]} 5. Ngf3 {[%clk 0:02:55]}  cxd4 {[%clk 0:02:58]} 6. Bc4 {[%clk 0:02:55]}  Qd6 {[%clk 0:02:57]} 7. O-O {[%clk 0:02:55]}  Nc6 {[%clk 0:02:57]} 8. Nb3 {[%clk 0:02:56]}  Nf6 {[%clk 0:02:56]} 9. Nbxd4 {[%clk 0:02:56]}  Nxd4 {[%clk 0:02:57]} 10. Nxd4 {[%clk 0:02:57]}  Be7 {[%clk 0:02:56]} 11. c3 {[%clk 0:02:57]}  O-O {[%clk 0:02:53]} 12. Qf3 {[%clk 0:02:57]}  e5 {[%clk 0:02:29]} 13. Nf5 {[%clk 0:02:47]}  Bxf5 {[%clk 0:02:29]} 14. Qxf5 {[%clk 0:02:47]}  Rad8 {[%clk 0:02:25]} 15. Be3 {[%clk 0:02:44]}  Nd5 {[%clk 0:02:16]} 16. Bxa7 {[%clk 0:02:01]}  g6 {[%clk 0:02:13]} 17. Qf3 {[%clk 0:01:58]}  Nf4 {[%clk 0:01:58]} 18. Be3 {[%clk 0:01:54]}  Bg5 {[%clk 0:01:35]} 19. g3 {[%clk 0:01:46]}  Nh3+ {[%clk 0:01:34]} 20. Kg2 {[%clk 0:01:45]}  Bxe3 {[%clk 0:01:33]} 21. Qxe3 {[%clk 0:01:37]}  Qc6+ {[%clk 0:01:33]} 22. Kxh3 {[%clk 0:01:37]}  Qxc4 {[%clk 0:01:27]} 23. b3 {[%clk 0:01:28]}  Qc6 {[%clk 0:01:16]} 24. Rad1 {[%clk 0:01:23]}  Rd5 {[%clk 0:01:01]} 25. Rxd5 {[%clk 0:01:10]}  Qxd5 {[%clk 0:01:00]} 26. c4 {[%clk 0:01:11]}  Qe6+ {[%clk 0:00:48]} 27. Kg2 {[%clk 0:01:10]}  Rd8 {[%clk 0:00:49]} 28. Qf3 {[%clk 0:01:07]}  e4 {[%clk 0:00:45]} 29. Qe2 {[%clk 0:01:03]}  Qc6 {[%clk 0:00:35]} 30. Kg1 {[%clk 0:00:51]}  Rd3 {[%clk 0:00:31]} 31. Rd1 {[%clk 0:00:23]}  Qd7 {[%clk 0:00:30]} 32. Re1 {[%clk 0:00:13]}  f5 {[%clk 0:00:28]} 33. h4 {[%clk 0:00:13]}  Rd2 {[%clk 0:00:29]} 34. Qe3 {[%clk 0:00:11]}  Rxa2 {[%clk 0:00:26]} 35. h5 {[%clk 0:00:10]}  Qd2 {[%clk 0:00:25]} 36. hxg6 {[%clk 0:00:06]}  hxg6 {[%clk 0:00:26]} 37. Qxd2 {[%clk 0:00:04]}  Rxd2 {[%clk 0:00:25]} 38. Rb1 {[%clk 0:00:03]}  Kf7 {[%clk 0:00:25]} 39. Kf1 {[%clk 0:00:03]}  Ke6 {[%clk 0:00:24]} 40. b4 {[%clk 0:00:04]}  Ke5 {[%clk 0:00:23]} 41. c5 {[%clk 0:00:04]}  Kd5 {[%clk 0:00:22]} 42. Rc1 {[%clk 0:00:03]}  Rb2 {[%clk 0:00:17]} 43. Rd1+ {[%clk 0:00:03]}  Kc6 {[%clk 0:00:16]} 44. Rd6+ {[%clk 0:00:04]}  Kc7 {[%clk 0:00:14]} 45. Rb6 {[%clk 0:00:03]}  g5 {[%clk 0:00:11]} 46. Ke1 {[%clk 0:00:03]}  f4 {[%clk 0:00:12]} 47. gxf4 {[%clk 0:00:04]}  gxf4 {[%clk 0:00:12]} 48. Kd1 {[%clk 0:00:04]}  Rxf2 {[%clk 0:00:11]} 49. Re6 {[%clk 0:00:04]}  e3 {[%clk 0:00:11]} 50. Ke1 {[%clk 0:00:04]}  Rb2 {[%clk 0:00:11]} 51. Kd1 {[%clk 0:00:05]}  Rxb4 {[%clk 0:00:10]} 52. Rf6 {[%clk 0:00:04]}  Rc4 {[%clk 0:00:10]} 53. Ke2 {[%clk 0:00:04]}  Rc2+ {[%clk 0:00:08]} 54. Kd3 {[%clk 0:00:04]}  Rf2 {[%clk 0:00:09]} 55. Kc4 {[%clk 0:00:03]}  e2 {[%clk 0:00:08]} 56. Re6 {[%clk 0:00:03]}  f3 {[%clk 0:00:08]} 57. Kd3 {[%clk 0:00:03]}  Rf1 {[%clk 0:00:08]} 58. Kd2 {[%clk 0:00:04]}  Rd1+ {[%clk 0:00:09]} 0-1


[Site "https://www.chess.com"]

[Event "Titled Tuesday Blitz January 17 Late 2023"]
[White "Vasques, Antonio Pedro Freixial"]
[Black "ArchibaldCerveza29"]
[WhiteFideId "1908332"]
[WhiteElo "2214"]
[BlackElo "2547"]
[Result "0-1"]
[Round "08"]
[TimeControl "180+2"]
[Date "2023.01.17"]
[WhiteClock "0:00:05"]
[BlackClock "0:00:06"]

1. d4 {[%clk 0:02:59]}  d5 {[%clk 0:03:00]} 2. c4 {[%clk 0:02:59]}  e6 {[%clk 0:03:00]} 3. Nf3 {[%clk 0:02:55]}  Nf6 {[%clk 0:03:00]} 4. g3 {[%clk 0:02:51]}  Be7 {[%clk 0:02:59]} 5. Bg2 {[%clk 0:02:51]}  O-O {[%clk 0:03:00]} 6. O-O {[%clk 0:02:52]}  dxc4 {[%clk 0:03:01]} 7. Qc2 {[%clk 0:02:49]}  b5 {[%clk 0:03:00]} 8. a4 {[%clk 0:02:48]}  Bb7 {[%clk 0:03:01]} 9. axb5 {[%clk 0:02:46]}  a6 {[%clk 0:03:01]} 10. Nc3 {[%clk 0:02:40]}  axb5 {[%clk 0:03:01]} 11. Rxa8 {[%clk 0:02:41]}  Bxa8 {[%clk 0:03:01]} 12. Nxb5 {[%clk 0:02:42]}  Bd5 {[%clk 0:03:02]} 13. Nc3 {[%clk 0:02:39]}  Nc6 {[%clk 0:02:54]} 14. e4 {[%clk 0:02:29]}  Nb4 {[%clk 0:02:49]} 15. Qe2 {[%clk 0:02:28]}  Ba8 {[%clk 0:02:40]} 16. Qxc4 {[%clk 0:02:26]}  Nxe4 {[%clk 0:02:37]} 17. Bf4 {[%clk 0:02:13]}  Nxc3 {[%clk 0:02:34]} 18. bxc3 {[%clk 0:02:14]}  Nd5 {[%clk 0:02:28]} 19. Bd2 {[%clk 0:02:14]}  Nb6 {[%clk 0:02:22]} 20. Qe2 {[%clk 0:01:53]}  c5 {[%clk 0:01:55]} 21. Rb1 {[%clk 0:01:46]}  Bd5 {[%clk 0:01:30]} 22. Qa6 {[%clk 0:00:57]}  Nc4 {[%clk 0:01:26]} 23. Bf4 {[%clk 0:00:54]}  cxd4 {[%clk 0:01:14]} 24. cxd4 {[%clk 0:00:52]}  Bf6 {[%clk 0:01:05]} 25. Rb8 {[%clk 0:00:46]}  Qd7 {[%clk 0:01:03]} 26. Rxf8+ {[%clk 0:00:24]}  Kxf8 {[%clk 0:01:04]} 27. Be5 {[%clk 0:00:22]}  Nxe5 {[%clk 0:00:38]} 28. Nxe5 {[%clk 0:00:20]}  Bxe5 {[%clk 0:00:39]} 29. dxe5 {[%clk 0:00:18]}  Bxg2 {[%clk 0:00:39]} 30. Qa3+ {[%clk 0:00:16]}  Ke8 {[%clk 0:00:35]} 31. Kxg2 {[%clk 0:00:14]}  Qd5+ {[%clk 0:00:35]} 32. Kg1 {[%clk 0:00:15]}  Qxe5 {[%clk 0:00:32]} 33. Qa7 {[%clk 0:00:14]}  Qd5 {[%clk 0:00:30]} 34. h4 {[%clk 0:00:14]}  h5 {[%clk 0:00:30]} 35. Qb8+ {[%clk 0:00:14]}  Ke7 {[%clk 0:00:29]} 36. Qf4 {[%clk 0:00:14]}  g6 {[%clk 0:00:28]} 37. Qb4+ {[%clk 0:00:13]}  Kf6 {[%clk 0:00:27]} 38. Qf4+ {[%clk 0:00:13]}  Qf5 {[%clk 0:00:26]} 39. Qd4+ {[%clk 0:00:13]}  Qe5 {[%clk 0:00:26]} 40. Qd8+ {[%clk 0:00:13]}  Kf5 {[%clk 0:00:26]} 41. Qd7 {[%clk 0:00:12]}  Qe1+ {[%clk 0:00:23]} 42. Kg2 {[%clk 0:00:12]}  Qe4+ {[%clk 0:00:23]} 43. Kg1 {[%clk 0:00:11]}  f6 {[%clk 0:00:20]} 44. Qd2 {[%clk 0:00:10]}  g5 {[%clk 0:00:15]} 45. Qd7 {[%clk 0:00:09]}  gxh4 {[%clk 0:00:14]} 46. Qh7+ {[%clk 0:00:08]}  Ke5 {[%clk 0:00:13]} 47. Qxh5+ {[%clk 0:00:08]}  f5 {[%clk 0:00:12]} 48. Qh8+ {[%clk 0:00:08]}  Kd5 {[%clk 0:00:09]} 49. Qa8+ {[%clk 0:00:08]}  Ke5 {[%clk 0:00:10]} 50. Qa1+ {[%clk 0:00:07]}  Qd4 {[%clk 0:00:08]} 51. Qe1+ {[%clk 0:00:05]}  Qe4 {[%clk 0:00:08]} 52. Qc3+ {[%clk 0:00:05]}  Qd4 {[%clk 0:00:08]} 53. Qa5+ {[%clk 0:00:05]}  Ke4 {[%clk 0:00:08]} 54. Qe1+ {[%clk 0:00:05]}  Kf3 {[%clk 0:00:07]} 55. Qd1+ {[%clk 0:00:05]}  Qxd1+ {[%clk 0:00:06]} 0-1


[Site "https://www.chess.com"]

[Event "Titled Tuesday Blitz January 17 Late 2023"]
[White "Ansh M Shah"]
[Black "Gerbelli Neto, Eduardo"]
[WhiteFideId "25033379"]
[BlackFideId "2103281"]
[WhiteElo "2171"]
[BlackElo "2114"]
[Result "1-0"]
[Round "08"]
[TimeControl "180+2"]
[Date "2023.01.17"]
[WhiteClock "0:00:21"]
[BlackClock "0:00:34"]

1. d4 {[%clk 0:03:00]}  d5 {[%clk 0:02:58]} 2. c4 {[%clk 0:03:01]}  c6 {[%clk 0:02:58]} 3. cxd5 {[%clk 0:03:01]}  cxd5 {[%clk 0:02:58]} 4. Nc3 {[%clk 0:03:01]}  Nf6 {[%clk 0:02:59]} 5. Bf4 {[%clk 0:03:01]}  Nc6 {[%clk 0:02:59]} 6. e3 {[%clk 0:03:01]}  Bf5 {[%clk 0:03:00]} 7. Rc1 {[%clk 0:03:00]}  e6 {[%clk 0:03:00]} 8. Qb3 {[%clk 0:03:00]}  Qb6 {[%clk 0:02:50]} 9. Qxb6 {[%clk 0:03:00]}  axb6 {[%clk 0:02:50]} 10. Bb5 {[%clk 0:03:01]}  Bb4 {[%clk 0:02:48]} 11. Ne2 {[%clk 0:03:00]}  Rxa2 {[%clk 0:02:44]} 12. O-O {[%clk 0:02:53]}  Rxb2 {[%clk 0:02:43]} 13. Na4 {[%clk 0:02:54]}  Rc2 {[%clk 0:02:39]} 14. Rxc2 {[%clk 0:02:48]}  Bxc2 {[%clk 0:02:40]} 15. Nxb6 {[%clk 0:02:48]}  O-O {[%clk 0:02:34]} 16. Rc1 {[%clk 0:02:48]}  Bg6 {[%clk 0:02:17]} 17. Bxc6 {[%clk 0:02:48]}  bxc6 {[%clk 0:02:18]} 18. Rxc6 {[%clk 0:02:47]}  h6 {[%clk 0:02:12]} 19. h3 {[%clk 0:02:37]}  Bd3 {[%clk 0:02:02]} 20. Nc3 {[%clk 0:02:26]}  Ne4 {[%clk 0:01:56]} 21. Nxe4 {[%clk 0:02:12]}  Bxe4 {[%clk 0:01:49]} 22. Kh2 {[%clk 0:01:56]}  Ba5 {[%clk 0:01:35]} 23. Nd7 {[%clk 0:01:51]}  Rd8 {[%clk 0:01:32]} 24. Nc5 {[%clk 0:01:49]}  Bg6 {[%clk 0:01:17]} 25. Ra6 {[%clk 0:01:13]}  Be1 {[%clk 0:01:16]} 26. Kg3 {[%clk 0:01:07]}  Rc8 {[%clk 0:01:09]} 27. Ra1 {[%clk 0:01:05]}  Bb4 {[%clk 0:01:07]} 28. Rc1 {[%clk 0:00:56]}  Ba3 {[%clk 0:01:06]} 29. Rc3 {[%clk 0:00:43]}  Bb4 {[%clk 0:01:01]} 30. Rb3 {[%clk 0:00:39]}  Ba5 {[%clk 0:00:37]} 31. Nd7 {[%clk 0:00:27]}  Bc7 {[%clk 0:00:33]} 32. Bxc7 {[%clk 0:00:20]}  Rxc7 {[%clk 0:00:33]} 33. Rb8+ {[%clk 0:00:20]}  Kh7 {[%clk 0:00:33]} 34. Nf8+ {[%clk 0:00:20]}  Kg8 {[%clk 0:00:34]} 35. Nxg6+ {[%clk 0:00:21]}  Kh7 {[%clk 0:00:34]} 36. Nf8+ {[%clk 0:00:21]}  Kg8 {[%clk 0:00:34]} 37. Nxe6+ {[%clk 0:00:21]} 1-0


[Site "https://www.chess.com"]

[Event "Titled Tuesday Blitz January 17 Late 2023"]
[White "Hoffmann, Asa"]
[Black "Carbone, Diego"]
[WhiteFideId "2001470"]
[BlackFideId "3002179"]
[WhiteElo "2185"]
[BlackElo "2336"]
[Result "1-0"]
[Round "08"]
[TimeControl "180+2"]
[Date "2023.01.17"]
[WhiteClock "0:00:27"]
[BlackClock "0:00:03"]

1. d4 {[%clk 0:02:59]}  Nf6 {[%clk 0:02:59]} 2. Bg5 {[%clk 0:02:55]}  e6 {[%clk 0:02:56]} 3. Nd2 {[%clk 0:02:55]}  d5 {[%clk 0:02:54]} 4. e3 {[%clk 0:02:51]}  Nbd7 {[%clk 0:02:49]} 5. f4 {[%clk 0:02:49]}  h6 {[%clk 0:02:48]} 6. Bh4 {[%clk 0:02:49]}  Be7 {[%clk 0:02:48]} 7. Bd3 {[%clk 0:02:49]}  c5 {[%clk 0:02:47]} 8. c3 {[%clk 0:02:49]}  Qb6 {[%clk 0:02:48]} 9. Rb1 {[%clk 0:02:48]}  a5 {[%clk 0:02:43]} 10. Ngf3 {[%clk 0:02:48]}  a4 {[%clk 0:02:40]} 11. O-O {[%clk 0:02:47]}  Ng4 {[%clk 0:02:29]} 12. Bxe7 {[%clk 0:02:45]}  Nxe3 {[%clk 0:02:20]} 13. Bxc5 {[%clk 0:02:37]}  Nxc5 {[%clk 0:01:50]} 14. dxc5 {[%clk 0:02:37]}  Nxd1 {[%clk 0:01:31]} 15. cxb6 {[%clk 0:02:34]}  Ne3 {[%clk 0:01:32]} 16. Rfe1 {[%clk 0:02:31]}  Ng4 {[%clk 0:01:32]} 17. h3 {[%clk 0:02:24]}  Nf6 {[%clk 0:01:31]} 18. Bb5+ {[%clk 0:02:22]}  Ke7 {[%clk 0:01:31]} 19. Ne5 {[%clk 0:02:21]}  Ra5 {[%clk 0:01:30]} 20. Bd3 {[%clk 0:02:16]}  Rd8 {[%clk 0:01:30]} 21. Ndf3 {[%clk 0:02:15]}  Rd6 {[%clk 0:01:30]} 22. b4 {[%clk 0:02:13]}  axb3 {[%clk 0:01:18]} 23. axb3 {[%clk 0:02:08]}  Rxb6 {[%clk 0:01:18]} 24. Nd4 {[%clk 0:02:05]}  Ne8 {[%clk 0:01:14]} 25. f5 {[%clk 0:02:03]}  Nd6 {[%clk 0:01:13]} 26. fxe6 {[%clk 0:02:01]}  fxe6 {[%clk 0:01:14]} 27. b4 {[%clk 0:02:00]}  Ra3 {[%clk 0:01:13]} 28. Rb3 {[%clk 0:01:55]}  Ra2 {[%clk 0:01:12]} 29. Re3 {[%clk 0:01:46]}  Ne8 {[%clk 0:01:11]} 30. Rf3 {[%clk 0:01:42]}  Nf6 {[%clk 0:01:10]} 31. Ng4 {[%clk 0:01:40]}  Rd6 {[%clk 0:01:04]} 32. Re3 {[%clk 0:01:36]}  Ra1+ {[%clk 0:00:57]} 33. Kh2 {[%clk 0:01:35]}  Rd8 {[%clk 0:00:53]} 34. Bf5 {[%clk 0:01:28]}  Ra6 {[%clk 0:00:45]} 35. b5 {[%clk 0:01:25]}  Rad6 {[%clk 0:00:45]} 36. Bg6 {[%clk 0:01:24]}  Kf8 {[%clk 0:00:41]} 37. Rf3 {[%clk 0:01:19]}  Ke7 {[%clk 0:00:40]} 38. Rb2 {[%clk 0:01:17]}  Rf8 {[%clk 0:00:38]} 39. Re2 {[%clk 0:01:16]}  Nxg4+ {[%clk 0:00:35]} 40. hxg4 {[%clk 0:01:15]}  Rxf3 {[%clk 0:00:30]} 41. gxf3 {[%clk 0:01:14]}  Kf6 {[%clk 0:00:31]} 42. Bd3 {[%clk 0:01:11]}  e5 {[%clk 0:00:31]} 43. Nf5 {[%clk 0:01:10]}  Rd7 {[%clk 0:00:30]} 44. Kg3 {[%clk 0:01:08]}  Rc7 {[%clk 0:00:30]} 45. Rc2 {[%clk 0:01:07]}  h5 {[%clk 0:00:25]} 46. Ne3 {[%clk 0:01:06]}  Be6 {[%clk 0:00:21]} 47. Bf5 {[%clk 0:01:03]}  hxg4 {[%clk 0:00:17]} 48. Kxg4 {[%clk 0:01:02]}  g6 {[%clk 0:00:17]} 49. Bxe6 {[%clk 0:00:59]}  Kxe6 {[%clk 0:00:18]} 50. f4 {[%clk 0:00:58]}  Rc5 {[%clk 0:00:16]} 51. b6 {[%clk 0:00:55]}  Rb5 {[%clk 0:00:14]} 52. fxe5 {[%clk 0:00:55]}  Kxe5 {[%clk 0:00:14]} 53. Rd2 {[%clk 0:00:54]}  Ke4 {[%clk 0:00:13]} 54. Nc2 {[%clk 0:00:46]}  Rxb6 {[%clk 0:00:12]} 55. Nb4 {[%clk 0:00:45]}  Rb5 {[%clk 0:00:08]} 56. Kg5 {[%clk 0:00:43]}  Rc5 {[%clk 0:00:06]} 57. Na2 {[%clk 0:00:37]}  b5 {[%clk 0:00:03]} 58. Kxg6 {[%clk 0:00:36]}  Rc4 {[%clk 0:00:02]} 59. Kf6 {[%clk 0:00:34]}  d4 {[%clk 0:00:03]} 60. cxd4 {[%clk 0:00:31]}  Rxd4 {[%clk 0:00:04]} 61. Rb2 {[%clk 0:00:30]}  Rd5 {[%clk 0:00:03]} 62. Nc3+ {[%clk 0:00:30]}  Kd4 {[%clk 0:00:02]} 63. Nxd5 {[%clk 0:00:29]}  Kc4 {[%clk 0:00:03]} 64. Rb4+ {[%clk 0:00:27]}  Kc5 {[%clk 0:00:03]} 65. Ke6 {[%clk 0:00:27]} 1-0


[Site "https://www.chess.com"]

[Event "Titled Tuesday Blitz January 17 Late 2023"]
[White "Alfaro, William"]
[Black "Sukandar, Irine Kharisma"]
[WhiteFideId "6100457"]
[BlackFideId "7101937"]
[WhiteElo "2134"]
[BlackElo "2390"]
[Result "0-1"]
[Round "08"]
[TimeControl "180+2"]
[Date "2023.01.17"]
[WhiteClock "0:02:25"]
[BlackClock "0:02:29"]

1. Nf3 {[%clk 0:03:00]}  c5 {[%clk 0:02:59]} 2. g3 {[%clk 0:02:58]}  g6 {[%clk 0:02:58]} 3. Bg2 {[%clk 0:02:56]}  Bg7 {[%clk 0:02:59]} 4. O-O {[%clk 0:02:56]}  Nf6 {[%clk 0:03:00]} 5. d3 {[%clk 0:02:56]}  O-O {[%clk 0:02:59]} 6. e4 {[%clk 0:02:57]}  Nc6 {[%clk 0:02:57]} 7. Be3 {[%clk 0:02:57]}  b6 {[%clk 0:02:56]} 8. Qd2 {[%clk 0:02:57]}  Ng4 {[%clk 0:02:53]} 9. Bg5 {[%clk 0:02:55]}  Bxb2 {[%clk 0:02:50]} 10. Nc3 {[%clk 0:02:50]}  f6 {[%clk 0:02:41]} 11. Bf4 {[%clk 0:02:48]}  e5 {[%clk 0:02:40]} 12. Nxe5 {[%clk 0:02:38]}  fxe5 {[%clk 0:02:32]} 13. Bg5 {[%clk 0:02:37]}  Bxc3 {[%clk 0:02:30]} 14. Qxc3 {[%clk 0:02:25]}  Qxg5 {[%clk 0:02:29]} 0-1


[Site "https://www.chess.com"]